[Event "*** Titled Tuesday Blitz"]
[Site "Chess.com"]
[Date "2018.06.05"]
[Round "3"]
[White "Eliwood44"]
[Black "CookiesAndIceCream"]
[Result "1-0"]
[WhiteElo "2176"]
[BlackElo "2035"]
[TimeControl "180+2"]
[EndTime "13:41:10 PDT"]
[Termination "Eliwood44 won by resignation"]

1. d4 {[%clk 0:03:01.9]} 1... Nf6 {[%clk 0:03:00.1]} 2. Nf3 {[%clk 0:03:02.4]}
2... d5 {[%clk 0:03:00.2]} 3. c4 {[%clk 0:03:02.6]} 3... c6 {[%clk 0:03:01.5]}
4. Qc2 {[%clk 0:03:02.9]} 4... dxc4 {[%clk 0:03:01.7]} 5. e4 {[%clk 0:03:03.7]}
5... b5 {[%clk 0:02:55.6]} 6. b3 {[%clk 0:03:02.6]} 6... cxb3 {[%clk 0:02:47.6]}
7. axb3 {[%clk 0:03:04.5]} 7... e6 {[%clk 0:02:48.6]} 8. Bd2 {[%clk 0:03:04.5]}
8... Be7 {[%clk 0:02:47.2]} 9. Ba5 {[%clk 0:03:04.4]} 9... Qd7 {[%clk
0:02:46.3]} 10. Bd3 {[%clk 0:03:02.9]} 10... O-O {[%clk 0:02:46.7]} 11. e5
{[%clk 0:03:02.7]} 11... Nd5 {[%clk 0:02:44]} 12. Bxh7+ {[%clk 0:03:03.7]} 12...
Kh8 {[%clk 0:02:45.2]} 13. O-O {[%clk 0:03:00.2]} 13... g6 {[%clk 0:02:37]} 14.
Bxg6 {[%clk 0:03:00.8]} 14... fxg6 {[%clk 0:02:38.2]} 15. Qxg6 {[%clk
0:03:02.7]} 15... Qe8 {[%clk 0:02:34.8]} 16. Qh6+ {[%clk 0:03:01.7]} 16... Kg8
{[%clk 0:02:35.8]} 17. Ng5 {[%clk 0:02:58.7]} 17... Bxg5 {[%clk 0:02:29.5]} 18.
Qxg5+ {[%clk 0:03:00.6]} 18... Kh7 {[%clk 0:02:26.6]} 19. Qh4+ {[%clk
0:02:52.4]} 19... Kg7 {[%clk 0:02:26.5]} 20. f4 {[%clk 0:02:48.5]} 20... Rh8
{[%clk 0:02:11.9]} 21. Qf2 {[%clk 0:02:46.6]} 21... Qh5 {[%clk 0:02:10.6]} 22.
h3 {[%clk 0:02:47.1]} 22... Nd7 {[%clk 0:01:50.8]} 23. Nd2 {[%clk 0:02:42.5]}
23... Nf8 {[%clk 0:01:46.1]} 24. Ne4 {[%clk 0:02:42.6]} 24... Ng6 {[%clk
0:01:46.1]} 25. Bd2 {[%clk 0:02:31.9]} 25... Qh4 {[%clk 0:01:35.5]} 26. Qf3
{[%clk 0:02:17.2]} 26... Rf8 {[%clk 0:01:24.7]} 27. Rac1 {[%clk 0:02:03.9]}
27... Ndxf4 {[%clk 0:01:17.4]} 28. Rxc6 {[%clk 0:01:59.2]} 28... Nd5 {[%clk
0:00:59]} 29. Nf6 {[%clk 0:01:53.3]} 29... Bb7 {[%clk 0:00:53.3]} 30. Rxe6
{[%clk 0:01:53.9]} 30... Qxd4+ {[%clk 0:00:27.4]} 31. Rf2 {[%clk 0:01:51.3]}
31... Nxf6 {[%clk 0:00:23.4]} 32. exf6+ {[%clk 0:01:43.9]} 32... Kf7 {[%clk
0:00:21.4]} 33. Re7+ {[%clk 0:01:29.2]} 33... Nxe7 {[%clk 0:00:20.9]} 34. Qxb7
{[%clk 0:01:30.3]} 34... Ke6 {[%clk 0:00:13.2]} 35. Qxe7+ {[%clk 0:01:27.9]}
35... Kd5 {[%clk 0:00:14.1]} 36. Be3 {[%clk 0:01:26]} 36... Qa1+ {[%clk
0:00:10.9]} 37. Rf1 {[%clk 0:01:25.6]} 37... Qe5 {[%clk 0:00:12.3]} 38. Qb7+
{[%clk 0:01:21.7]} 38... Ke6 {[%clk 0:00:12.6]} 39. Qe7+ {[%clk 0:01:09.9]}
39... Kd5 {[%clk 0:00:13.1]} 40. Rd1+ {[%clk 0:01:11.4]} 40... Ke4 {[%clk
0:00:13.8]} 41. Qb7+ {[%clk 0:01:12.1]} 41... Kf5 {[%clk 0:00:13.6]} 42. Rf1+
{[%clk 0:01:11.7]} 42... Ke6 {[%clk 0:00:12.1]} 43. Qc6+ {[%clk 0:01:01.8]}
43... Kf7 {[%clk 0:00:12.4]} 44. Qd7+ {[%clk 0:01:00.5]} 1-0

[Event "*** Titled Tuesday Blitz"]
[Site "Chess.com"]
[Date "2018.06.05"]
[Round "3"]
[White "littleplotkin"]
[Black "GoingKronos"]
[Result "1-0"]
[WhiteElo "2386"]
[BlackElo "2328"]
[TimeControl "180+2"]
[EndTime "13:41:11 PDT"]
[Termination "littleplotkin won on time"]

1. e4 {[%clk 0:03:00.1]} 1... e6 {[%clk 0:03:00.8]} 2. d4 {[%clk 0:03:00.3]}
2... d5 {[%clk 0:03:01.7]} 3. Nd2 {[%clk 0:03:02.2]} 3... c5 {[%clk 0:03:01.6]}
4. exd5 {[%clk 0:03:01.9]} 4... exd5 {[%clk 0:03:02.4]} 5. Ngf3 {[%clk 0:03:02]}
5... a6 {[%clk 0:03:03.2]} 6. dxc5 {[%clk 0:03:01.3]} 6... Bxc5 {[%clk
0:03:03.7]} 7. Nb3 {[%clk 0:03:02.4]} 7... Bb6 {[%clk 0:03:04.5]} 8. Nbd4 {[%clk
0:03:03.6]} 8... Nf6 {[%clk 0:03:01.5]} 9. Bd3 {[%clk 0:03:02.7]} 9... O-O
{[%clk 0:02:58.9]} 10. O-O {[%clk 0:03:02.1]} 10... Bg4 {[%clk 0:02:54.7]} 11.
c3 {[%clk 0:03:01.7]} 11... Nc6 {[%clk 0:02:55]} 12. Be3 {[%clk 0:02:57.4]}
12... Re8 {[%clk 0:02:45.7]} 13. h3 {[%clk 0:02:57.5]} 13... Bh5 {[%clk
0:02:45.8]} 14. Re1 {[%clk 0:02:52.1]} 14... Bc7 {[%clk 0:02:40.9]} 15. g4
{[%clk 0:02:48.8]} 15... Bg6 {[%clk 0:02:31.5]} 16. Nf5 {[%clk 0:02:47.7]} 16...
Ne4 {[%clk 0:02:23.8]} 17. N5d4 {[%clk 0:02:39.7]} 17... Qd6 {[%clk 0:02:14.2]}
18. Qc2 {[%clk 0:02:29.4]} 18... Rad8 {[%clk 0:01:56.3]} 19. Kg2 {[%clk
0:02:26.1]} 19... Ne5 {[%clk 0:01:44.9]} 20. Nxe5 {[%clk 0:02:22.8]} 20... Qxe5
{[%clk 0:01:45.7]} 21. Nf3 {[%clk 0:02:24.2]} 21... Qf6 {[%clk 0:01:41.9]} 22.
c4 {[%clk 0:02:11.4]} 22... d4 {[%clk 0:01:17.1]} 23. Bd2 {[%clk 0:02:00.3]}
23... Nc5 {[%clk 0:01:10.1]} 24. Bxg6 {[%clk 0:01:59.6]} 24... hxg6 {[%clk
0:01:12]} 25. Bg5 {[%clk 0:01:58.9]} 25... Qd6 {[%clk 0:01:06.9]} 26. Bxd8
{[%clk 0:01:56.3]} 26... Rxd8 {[%clk 0:01:08.8]} 27. Qd2 {[%clk 0:01:53]} 27...
Ne6 {[%clk 0:01:08.4]} 28. Re4 {[%clk 0:01:39.3]} 28... Qc6 {[%clk 0:00:59.7]}
29. Rae1 {[%clk 0:01:25.2]} 29... Bb6 {[%clk 0:00:36.9]} 30. Ne5 {[%clk
0:01:16]} 30... Qc7 {[%clk 0:00:30.4]} 31. Nxg6 {[%clk 0:01:13.5]} 31... Nc5
{[%clk 0:00:23.1]} 32. Re8+ {[%clk 0:00:46.5]} 32... Rxe8 {[%clk 0:00:24.1]} 33.
Rxe8+ {[%clk 0:00:47]} 33... Kh7 {[%clk 0:00:25.8]} 34. Ne5 {[%clk 0:00:46.4]}
34... Ne6 {[%clk 0:00:22.7]} 35. Qd3+ {[%clk 0:00:44]} 35... g6 {[%clk
0:00:21.2]} 36. Nxg6 {[%clk 0:00:44.6]} 36... fxg6 {[%clk 0:00:21.6]} 37. Rxe6
{[%clk 0:00:44.4]} 37... Qf7 {[%clk 0:00:23.1]} 38. Qe4 {[%clk 0:00:44.9]} 38...
Bc7 {[%clk 0:00:24]} 39. h4 {[%clk 0:00:45.7]} 39... Qf4 {[%clk 0:00:14.4]} 40.
Qxg6+ {[%clk 0:00:44.8]} 1-0

[Event "*** Titled Tuesday Blitz"]
[Site "Chess.com"]
[Date "2018.06.05"]
[Round "3"]
[White "hansen"]
[Black "Ehsan_GhaemMaghami"]
[Result "0-1"]
[WhiteElo "2776"]
[BlackElo "2575"]
[TimeControl "180+2"]
[EndTime "13:41:14 PDT"]
[Termination "Ehsan_GhaemMaghami won on time"]

1. e4 {[%clk 0:02:56.6]} 1... c6 {[%clk 0:03:00.5]} 2. d4 {[%clk 0:02:48.7]}
2... d5 {[%clk 0:03:00.4]} 3. e5 {[%clk 0:02:44.4]} 3... Bf5 {[%clk 0:02:59.9]}
4. Nf3 {[%clk 0:02:44.9]} 4... e6 {[%clk 0:03:00]} 5. Be2 {[%clk 0:02:44.6]}
5... Ne7 {[%clk 0:02:57.9]} 6. Nbd2 {[%clk 0:02:37]} 6... h6 {[%clk 0:02:56]} 7.
Nb3 {[%clk 0:02:37.8]} 7... Nd7 {[%clk 0:02:55.8]} 8. O-O {[%clk 0:02:36.1]}
8... Rc8 {[%clk 0:02:25.8]} 9. Be3 {[%clk 0:02:05.1]} 9... Bh7 {[%clk
0:02:23.3]} 10. Rc1 {[%clk 0:02:00.1]} 10... Nf5 {[%clk 0:02:22.6]} 11. Bd3
{[%clk 0:01:29.8]} 11... a6 {[%clk 0:02:01.2]} 12. c3 {[%clk 0:01:14.8]} 12...
c5 {[%clk 0:01:53.3]} 13. Bb1 {[%clk 0:01:08.9]} 13... Be7 {[%clk 0:01:23.2]}
14. Bf4 {[%clk 0:01:06.4]} 14... g5 {[%clk 0:01:14.1]} 15. Be3 {[%clk
0:01:01.4]} 15... Qb6 {[%clk 0:01:03.2]} 16. Bxf5 {[%clk 0:00:51]} 16... Bxf5
{[%clk 0:01:01.9]} 17. dxc5 {[%clk 0:00:45.3]} 17... Nxc5 {[%clk 0:00:57.9]} 18.
Nxc5 {[%clk 0:00:45.8]} 18... Bxc5 {[%clk 0:00:58.3]} 19. Bxc5 {[%clk
0:00:47.3]} 19... Rxc5 {[%clk 0:00:58.7]} 20. Qd2 {[%clk 0:00:48.3]} 20... Qb5
{[%clk 0:00:44.2]} 21. Rfd1 {[%clk 0:00:40.4]} 21... Qc4 {[%clk 0:00:41.7]} 22.
Nd4 {[%clk 0:00:40.9]} 22... Qxa2 {[%clk 0:00:38.5]} 23. Qe3 {[%clk 0:00:34.7]}
23... Rc7 {[%clk 0:00:25.1]} 24. Rd2 {[%clk 0:00:34.5]} 24... Qc4 {[%clk
0:00:23.4]} 25. Re1 {[%clk 0:00:33.2]} 25... Bg6 {[%clk 0:00:23.5]} 26. h4
{[%clk 0:00:26.1]} 26... Qc5 {[%clk 0:00:21.4]} 27. Qh3 {[%clk 0:00:23.2]} 27...
Qe7 {[%clk 0:00:21.1]} 28. hxg5 {[%clk 0:00:17.9]} 28... Qxg5 {[%clk 0:00:21.7]}
29. Re3 {[%clk 0:00:18.8]} 29... h5 {[%clk 0:00:21.2]} 30. Rde2 {[%clk 0:00:12]}
30... h4 {[%clk 0:00:21.6]} 31. Qh2 {[%clk 0:00:12.5]} 31... Rg8 {[%clk
0:00:20.8]} 32. Rh3 {[%clk 0:00:12.2]} 32... Qc1+ {[%clk 0:00:19.9]} 0-1

[Event "*** Titled Tuesday Blitz"]
[Site "Chess.com"]
[Date "2018.06.05"]
[Round "3"]
[White "Vamostodorecto"]
[Black "rubhani"]
[Result "0-1"]
[WhiteElo "2350"]
[BlackElo "2422"]
[TimeControl "180+2"]
[EndTime "13:41:17 PDT"]
[Termination "rubhani won on time"]

1. d4 {[%clk 0:03:01.9]} 1... Nf6 {[%clk 0:02:56.9]} 2. c4 {[%clk 0:03:01.6]}
2... e6 {[%clk 0:02:58.4]} 3. Nc3 {[%clk 0:03:02]} 3... Bb4 {[%clk 0:02:59.5]}
4. a3 {[%clk 0:03:03.2]} 4... Bxc3+ {[%clk 0:02:59.8]} 5. bxc3 {[%clk
0:03:05.1]} 5... O-O {[%clk 0:03:01.3]} 6. e3 {[%clk 0:03:05.9]} 6... c5 {[%clk
0:02:57.5]} 7. Bd3 {[%clk 0:03:06]} 7... d5 {[%clk 0:02:57.3]} 8. cxd5 {[%clk
0:03:06]} 8... Nxd5 {[%clk 0:02:58]} 9. Ne2 {[%clk 0:03:04.9]} 9... Nc6 {[%clk
0:02:58.1]} 10. e4 {[%clk 0:03:01]} 10... Nde7 {[%clk 0:02:55.8]} 11. e5 {[%clk
0:02:56.2]} 11... cxd4 {[%clk 0:02:05]} 12. cxd4 {[%clk 0:02:55.7]} 12... Nd5
{[%clk 0:02:06.2]} 13. O-O {[%clk 0:02:53.6]} 13... Bd7 {[%clk 0:02:07.5]} 14.
Nf4 {[%clk 0:02:44.2]} 14... Nxf4 {[%clk 0:02:08.1]} 15. Bxf4 {[%clk 0:02:46.1]}
15... Ne7 {[%clk 0:02:09.2]} 16. Bg5 {[%clk 0:02:42.5]} 16... Bc6 {[%clk
0:02:07.8]} 17. Qh5 {[%clk 0:02:25.7]} 17... h6 {[%clk 0:02:08.4]} 18. Qh4
{[%clk 0:01:50.5]} 18... Re8 {[%clk 0:02:07.3]} 19. Bf6 {[%clk 0:01:13.9]} 19...
gxf6 {[%clk 0:01:38.9]} 20. exf6 {[%clk 0:01:15.8]} 20... Ng6 {[%clk 0:01:29.1]}
21. Bxg6 {[%clk 0:00:59.4]} 21... fxg6 {[%clk 0:01:31]} 22. Rfe1 {[%clk
0:00:39.3]} 22... Qd5 {[%clk 0:01:21.3]} 23. f3 {[%clk 0:00:20.2]} 23... Qg5
{[%clk 0:01:21.8]} 24. Qh3 {[%clk 0:00:16.9]} 24... Qxf6 {[%clk 0:01:20.7]} 25.
Qxh6 {[%clk 0:00:17.1]} 25... Rad8 {[%clk 0:01:18.4]} 26. Re5 {[%clk 0:00:16.3]}
26... Qg7 {[%clk 0:01:08.8]} 27. Qf4 {[%clk 0:00:12.5]} 27... Rd5 {[%clk
0:01:06.8]} 28. Rae1 {[%clk 0:00:11.8]} 28... Rxe5 {[%clk 0:01:07.8]} 29. Rxe5
{[%clk 0:00:13.5]} 29... Rd8 {[%clk 0:01:03.7]} 30. h4 {[%clk 0:00:13.3]} 30...
Rd5 {[%clk 0:01:03.6]} 31. Rxe6 {[%clk 0:00:09.3]} 31... Qxd4+ {[%clk
0:01:03.6]} 32. Qxd4 {[%clk 0:00:09.8]} 32... Rxd4 {[%clk 0:01:05.5]} 33. Rxg6+
{[%clk 0:00:11.3]} 33... Kf7 {[%clk 0:01:06.8]} 34. h5 {[%clk 0:00:11.9]} 34...
Rd5 {[%clk 0:01:06]} 35. g4 {[%clk 0:00:10.9]} 35... Rd3 {[%clk 0:01:07.1]} 36.
f4 {[%clk 0:00:10.6]} 36... Rxa3 {[%clk 0:01:07.8]} 37. f5 {[%clk 0:00:10.2]}
37... a5 {[%clk 0:01:05.9]} 38. h6 {[%clk 0:00:09.1]} 38... a4 {[%clk
0:01:01.1]} 39. g5 {[%clk 0:00:09.4]} 39... Rh3 {[%clk 0:00:55]} 40. Rg7+ {[%clk
0:00:07.6]} 40... Kf8 {[%clk 0:00:55.3]} 41. f6 {[%clk 0:00:05.2]} 41... a3
{[%clk 0:00:51.6]} 0-1

[Event "*** Titled Tuesday Blitz"]
[Site "Chess.com"]
[Date "2018.06.05"]
[Round "3"]
[White "AndreyOstrovskiy"]
[Black "Zhuu96"]
[Result "0-1"]
[WhiteElo "2660"]
[BlackElo "2932"]
[TimeControl "180+2"]
[EndTime "13:41:23 PDT"]
[Termination "Zhuu96 won by resignation"]

1. e4 {[%clk 0:03:01.9]} 1... c5 {[%clk 0:03:00.9]} 2. Nf3 {[%clk 0:03:02.5]}
2... Nc6 {[%clk 0:03:02.5]} 3. d4 {[%clk 0:03:02.2]} 3... cxd4 {[%clk
0:03:03.3]} 4. Nxd4 {[%clk 0:03:04.1]} 4... Nf6 {[%clk 0:03:03.6]} 5. Nc3 {[%clk
0:03:04.5]} 5... e5 {[%clk 0:03:05.2]} 6. Ndb5 {[%clk 0:03:04.9]} 6... d6 {[%clk
0:03:07.1]} 7. Bg5 {[%clk 0:03:05.4]} 7... a6 {[%clk 0:03:07.4]} 8. Na3 {[%clk
0:03:06.8]} 8... b5 {[%clk 0:03:05.1]} 9. Nd5 {[%clk 0:03:08.1]} 9... Be7 {[%clk
0:03:05.5]} 10. Bxf6 {[%clk 0:03:09.4]} 10... Bxf6 {[%clk 0:03:06.3]} 11. c4
{[%clk 0:03:09.5]} 11... b4 {[%clk 0:03:06.7]} 12. Nc2 {[%clk 0:03:10.6]} 12...
O-O {[%clk 0:03:07.6]} 13. g3 {[%clk 0:03:10.8]} 13... Bg5 {[%clk 0:03:05.5]}
14. Bg2 {[%clk 0:03:11.4]} 14... Qa5 {[%clk 0:03:05.4]} 15. O-O {[%clk
0:03:04.2]} 15... Qc5 {[%clk 0:03:06.2]} 16. b3 {[%clk 0:03:03.7]} 16... a5
{[%clk 0:03:04.8]} 17. a3 {[%clk 0:02:44.2]} 17... bxa3 {[%clk 0:03:02.1]} 18.
Rxa3 {[%clk 0:02:44.7]} 18... Rb8 {[%clk 0:03:02.3]} 19. Kh1 {[%clk 0:02:31.5]}
19... f5 {[%clk 0:02:51.3]} 20. f4 {[%clk 0:02:23.2]} 20... Bd8 {[%clk 0:02:44]}
21. Qd3 {[%clk 0:02:18.6]} 21... Kh8 {[%clk 0:02:40.5]} 22. Raa1 {[%clk
0:02:04.8]} 22... Be6 {[%clk 0:02:35.9]} 23. Rad1 {[%clk 0:01:58.5]} 23... Ne7
{[%clk 0:02:18.5]} 24. fxe5 {[%clk 0:01:55.4]} 24... dxe5 {[%clk 0:02:18.7]} 25.
Nxe7 {[%clk 0:01:54.7]} 25... Bxe7 {[%clk 0:02:19.5]} 26. exf5 {[%clk 0:01:56]}
26... Bg8 {[%clk 0:02:18.5]} 27. Ne3 {[%clk 0:01:47.6]} 27... Qa3 {[%clk
0:02:19.3]} 28. Nd5 {[%clk 0:01:37.5]} 28... Rxb3 {[%clk 0:02:19.4]} 29. Qe4
{[%clk 0:01:34.8]} 29... Bxd5 {[%clk 0:02:05.8]} 30. cxd5 {[%clk 0:01:35.3]}
30... Qd6 {[%clk 0:02:03.3]} 31. Rc1 {[%clk 0:01:33]} 31... Rb4 {[%clk
0:01:56.5]} 32. Qe2 {[%clk 0:01:31.3]} 32... Rb6 {[%clk 0:01:53.7]} 33. Rc6
{[%clk 0:01:22.4]} 33... Rxc6 {[%clk 0:01:54.9]} 34. dxc6 {[%clk 0:01:24.3]}
34... a4 {[%clk 0:01:54.6]} 35. Rd1 {[%clk 0:01:17.1]} 35... Qc5 {[%clk
0:01:54.6]} 36. Be4 {[%clk 0:01:01.7]} 36... a3 {[%clk 0:01:53.8]} 37. Rd7
{[%clk 0:00:39.2]} 37... Ra8 {[%clk 0:01:52.6]} 38. f6 {[%clk 0:00:21]} 38... a2
{[%clk 0:01:29.3]} 39. fxg7+ {[%clk 0:00:22]} 39... Kg8 {[%clk 0:01:30.1]} 40.
Bd5+ {[%clk 0:00:23.2]} 40... Qxd5+ {[%clk 0:01:30.6]} 41. Rxd5 {[%clk
0:00:25.1]} 41... a1=Q+ {[%clk 0:01:31.5]} 42. Rd1 {[%clk 0:00:26.1]} 42... Qa4
{[%clk 0:01:30.1]} 43. Rc1 {[%clk 0:00:23.4]} 43... Qd4 {[%clk 0:01:26]} 44. c7
{[%clk 0:00:23]} 44... Qd5+ {[%clk 0:01:26.9]} 45. Qg2 {[%clk 0:00:23.3]} 45...
Qxg2+ {[%clk 0:01:27.6]} 46. Kxg2 {[%clk 0:00:25.2]} 46... Rc8 {[%clk
0:01:28.9]} 47. Kf3 {[%clk 0:00:26.6]} 47... Kxg7 {[%clk 0:01:27.1]} 48. Rc6
{[%clk 0:00:27.6]} 48... Kf7 {[%clk 0:01:24]} 49. Ke4 {[%clk 0:00:28.7]} 49...
Bf6 {[%clk 0:01:25.3]} 50. Kf5 {[%clk 0:00:29.5]} 50... Bg7 {[%clk 0:01:25.9]}
51. g4 {[%clk 0:00:30.4]} 51... Ke7 {[%clk 0:01:27.1]} 52. h4 {[%clk 0:00:26.9]}
52... Kd7 {[%clk 0:01:28.2]} 53. Rc2 {[%clk 0:00:20.9]} 53... Rxc7 {[%clk
0:01:28.7]} 54. Rd2+ {[%clk 0:00:21.9]} 54... Ke7 {[%clk 0:01:29.8]} 55. g5
{[%clk 0:00:23.3]} 55... Rc4 {[%clk 0:01:30.8]} 56. Rf2 {[%clk 0:00:22.7]} 56...
Rxh4 {[%clk 0:01:30.9]} 57. g6 {[%clk 0:00:24.2]} 57... Rh5+ {[%clk 0:01:31.2]}
58. Kg4 {[%clk 0:00:25.4]} 0-1

[Event "*** Titled Tuesday Blitz"]
[Site "Chess.com"]
[Date "2018.06.05"]
[Round "3"]
[White "Sanan_Sjugirov"]
[Black "Keranke"]
[Result "0-1"]
[WhiteElo "2708"]
[BlackElo "2733"]
[TimeControl "180+2"]
[EndTime "13:41:25 PDT"]
[Termination "Keranke won by resignation"]

1. e4 {[%clk 0:03:01.9]} 1... g6 {[%clk 0:02:48.9]} 2. d4 {[%clk 0:03:01.9]}
2... Bg7 {[%clk 0:02:50.5]} 3. Nc3 {[%clk 0:03:02.9]} 3... d6 {[%clk 0:02:52]}
4. Bg5 {[%clk 0:03:01.2]} 4... a6 {[%clk 0:02:52.6]} 5. Qd2 {[%clk 0:03:01.9]}
5... b5 {[%clk 0:02:53.7]} 6. f4 {[%clk 0:03:02.4]} 6... Nd7 {[%clk 0:02:55]} 7.
Nf3 {[%clk 0:03:02.2]} 7... c5 {[%clk 0:02:56.3]} 8. e5 {[%clk 0:02:51.3]} 8...
cxd4 {[%clk 0:02:47.2]} 9. Nd5 {[%clk 0:02:20.8]} 9... dxe5 {[%clk 0:02:33.9]}
10. fxe5 {[%clk 0:01:56.5]} 10... Nxe5 {[%clk 0:02:33.3]} 11. Nb4 {[%clk
0:01:40.1]} 11... Nxf3+ {[%clk 0:02:31.4]} 12. gxf3 {[%clk 0:01:42]} 12... Bb7
{[%clk 0:02:29.8]} 13. Bg2 {[%clk 0:01:36.8]} 13... Nf6 {[%clk 0:02:26.5]} 14.
O-O-O {[%clk 0:01:36]} 14... a5 {[%clk 0:02:17.7]} 15. Nd3 {[%clk 0:01:35.6]}
15... O-O {[%clk 0:02:14.4]} 16. Rhe1 {[%clk 0:01:20.2]} 16... Rc8 {[%clk
0:02:06.8]} 17. Kb1 {[%clk 0:01:17.3]} 17... Nd5 {[%clk 0:01:56.8]} 18. f4
{[%clk 0:01:14.5]} 18... Qd7 {[%clk 0:01:29.1]} 19. Bxd5 {[%clk 0:01:12.4]}
19... Qxd5 {[%clk 0:01:27.8]} 20. Bxe7 {[%clk 0:01:05.5]} 20... Rfe8 {[%clk
0:01:28.8]} 21. Bh4 {[%clk 0:00:59.5]} 21... b4 {[%clk 0:01:25]} 22. b3 {[%clk
0:00:56.4]} 22... Qf5 {[%clk 0:01:16.6]} 23. Ne5 {[%clk 0:00:39.6]} 23... Be4
{[%clk 0:01:16.3]} 24. Rc1 {[%clk 0:00:36.8]} 24... Bh6 {[%clk 0:01:11.7]} 25.
Qxd4 {[%clk 0:00:33.6]} 25... Bxc2+ {[%clk 0:01:07.3]} 26. Kb2 {[%clk
0:00:34.4]} 26... Qxf4 {[%clk 0:00:48.2]} 27. Qxf4 {[%clk 0:00:11.6]} 27... Bxf4
{[%clk 0:00:50.1]} 28. Rxc2 {[%clk 0:00:09]} 28... Bxe5+ {[%clk 0:00:51.2]} 29.
Kb1 {[%clk 0:00:09]} 29... Bc3 {[%clk 0:00:52.2]} 30. Rf1 {[%clk 0:00:09.2]}
30... f5 {[%clk 0:00:51.9]} 31. Bg3 {[%clk 0:00:09.2]} 31... Rcd8 {[%clk
0:00:47.4]} 32. Bc7 {[%clk 0:00:09.9]} 32... Rd5 {[%clk 0:00:48.7]} 33. a3
{[%clk 0:00:07.7]} 33... Re7 {[%clk 0:00:35.9]} 34. Bb6 {[%clk 0:00:08.2]} 34...
Red7 {[%clk 0:00:36.6]} 35. Rfc1 {[%clk 0:00:06.8]} 35... f4 {[%clk 0:00:32.9]}
36. Ka2 {[%clk 0:00:06.6]} 36... Rf5 {[%clk 0:00:30]} 37. Re2 {[%clk 0:00:03.7]}
37... f3 {[%clk 0:00:30.7]} 38. Re8+ {[%clk 0:00:04.4]} 38... Kf7 {[%clk
0:00:31.5]} 39. Ra8 {[%clk 0:00:05.3]} 39... Rd2+ {[%clk 0:00:32]} 40. Kb1
{[%clk 0:00:06.6]} 40... Rb2+ {[%clk 0:00:33.1]} 41. Ka1 {[%clk 0:00:08.2]}
41... Rxb3+ {[%clk 0:00:34.6]} 42. Ka2 {[%clk 0:00:09]} 42... Rxa3+ {[%clk
0:00:35.7]} 43. Kb1 {[%clk 0:00:10.6]} 43... Ra1+ {[%clk 0:00:37.4]} 44. Kc2
{[%clk 0:00:12]} 44... Rxc1+ {[%clk 0:00:38.7]} 45. Kxc1 {[%clk 0:00:13.6]}
45... f2 {[%clk 0:00:40.1]} 0-1

[Event "*** Titled Tuesday Blitz"]
[Site "Chess.com"]
[Date "2018.06.05"]
[Round "3"]
[White "TigranLPetrosyan"]
[Black "leoo2001"]
[Result "1-0"]
[WhiteElo "2814"]
[BlackElo "2140"]
[TimeControl "180+2"]
[EndTime "13:41:27 PDT"]
[Termination "TigranLPetrosyan won by resignation"]

1. e4 {[%clk 0:03:01.9]} 1... e5 {[%clk 0:03:00.3]} 2. Nf3 {[%clk 0:03:02.1]}
2... Nc6 {[%clk 0:03:01.3]} 3. Bb5 {[%clk 0:03:03.7]} 3... a6 {[%clk 0:03:01.9]}
4. Bxc6 {[%clk 0:03:04.5]} 4... dxc6 {[%clk 0:03:02.7]} 5. O-O {[%clk
0:03:06.4]} 5... Bd6 {[%clk 0:03:02.4]} 6. d4 {[%clk 0:03:07.1]} 6... exd4
{[%clk 0:03:03.5]} 7. Qxd4 {[%clk 0:03:09]} 7... f6 {[%clk 0:03:04.7]} 8. Be3
{[%clk 0:03:09.1]} 8... Ne7 {[%clk 0:03:05.6]} 9. Nbd2 {[%clk 0:03:10.6]} 9...
Be6 {[%clk 0:03:06.7]} 10. Rfd1 {[%clk 0:03:11.1]} 10... Ng6 {[%clk 0:03:07.3]}
11. Nc4 {[%clk 0:03:10.5]} 11... Bxc4 {[%clk 0:03:07.4]} 12. Qxc4 {[%clk
0:03:12.4]} 12... Qe7 {[%clk 0:03:08.7]} 13. Nd4 {[%clk 0:03:11.5]} 13... Qxe4
{[%clk 0:03:01.3]} 14. Re1 {[%clk 0:02:49.9]} 14... O-O-O {[%clk 0:02:46.9]} 15.
Qe6+ {[%clk 0:02:49.1]} 15... Qxe6 {[%clk 0:02:47.1]} 16. Nxe6 {[%clk 0:02:51]}
16... Rd7 {[%clk 0:02:48.6]} 17. Nc5 {[%clk 0:02:37.6]} 17... Re7 {[%clk
0:02:48.1]} 18. Nd3 {[%clk 0:02:37]} 18... Rhe8 {[%clk 0:02:48.1]} 19. Rad1
{[%clk 0:02:26.8]} 19... b6 {[%clk 0:02:45.1]} 20. b3 {[%clk 0:02:25.4]} 20...
c5 {[%clk 0:02:43.3]} 21. c4 {[%clk 0:02:24.2]} 21... Kd7 {[%clk 0:02:41]} 22.
Kf1 {[%clk 0:02:19.1]} 22... Kc6 {[%clk 0:02:41.8]} 23. g3 {[%clk 0:02:11.5]}
23... a5 {[%clk 0:02:26.1]} 24. a4 {[%clk 0:02:11.6]} 24... Ne5 {[%clk
0:02:21.6]} 25. Nxe5+ {[%clk 0:02:10.9]} 25... Bxe5 {[%clk 0:02:22.5]} 26. Rd3
{[%clk 0:01:51.8]} 26... Bd4 {[%clk 0:02:21]} 27. Bd2 {[%clk 0:01:52.5]} 27...
Rxe1+ {[%clk 0:02:20.4]} 28. Bxe1 {[%clk 0:01:54.4]} 28... Re6 {[%clk
0:02:19.7]} 29. Bd2 {[%clk 0:01:53.5]} 29... Be5 {[%clk 0:02:10.4]} 30. g4
{[%clk 0:01:45.3]} 30... Rd6 {[%clk 0:02:04.4]} 31. Rxd6+ {[%clk 0:01:07.7]}
31... Kxd6 {[%clk 0:02:04.6]} 32. f4 {[%clk 0:00:55.4]} 32... Bd4 {[%clk
0:02:05.2]} 33. Ke2 {[%clk 0:00:56.7]} 33... g6 {[%clk 0:02:05.2]} 34. Kf3
{[%clk 0:00:53.5]} 34... f5 {[%clk 0:02:05.9]} 35. h3 {[%clk 0:00:49.2]} 35...
Bf6 {[%clk 0:01:59.4]} 36. Be3 {[%clk 0:00:49.5]} 36... c6 {[%clk 0:02:00.3]}
37. Bf2 {[%clk 0:00:50.5]} 37... Kc7 {[%clk 0:01:59.3]} 38. Bg3 {[%clk
0:00:48.8]} 38... h5 {[%clk 0:01:51]} 39. Be1 {[%clk 0:00:46.5]} 39... Kd6
{[%clk 0:01:50.1]} 40. Bf2 {[%clk 0:00:47.6]} 40... Ke6 {[%clk 0:01:48.9]} 41.
Be1 {[%clk 0:00:48.4]} 41... Kd6 {[%clk 0:01:40.3]} 42. Bf2 {[%clk 0:00:49]}
42... Ke7 {[%clk 0:01:30.5]} 43. Kg3 {[%clk 0:00:49.7]} 43... Kf7 {[%clk
0:01:29.8]} 44. Be1 {[%clk 0:00:50.6]} 44... Kg7 {[%clk 0:01:26.4]} 45. Kf3
{[%clk 0:00:50.9]} 45... Kf7 {[%clk 0:01:25.9]} 46. Bg3 {[%clk 0:00:51.4]} 46...
Ke6 {[%clk 0:01:22.9]} 47. Bf2 {[%clk 0:00:52.8]} 47... Kf7 {[%clk 0:01:19.5]}
48. Be1 {[%clk 0:00:54]} 48... Ke6 {[%clk 0:01:20]} 49. Bd2 {[%clk 0:00:54.9]}
49... Kf7 {[%clk 0:01:20.4]} 50. Be3 {[%clk 0:00:56.2]} 50... Ke6 {[%clk
0:01:21.5]} 51. Bd2 {[%clk 0:00:57.3]} 51... Bd4 {[%clk 0:01:20.4]} 52. Bc1
{[%clk 0:00:58]} 52... Kf7 {[%clk 0:01:18.5]} 53. Bd2 {[%clk 0:00:59.3]} 53...
Bf6 {[%clk 0:01:18.8]} 54. Be1 {[%clk 0:01:00.3]} 54... Ke6 {[%clk 0:01:19.3]}
55. Kg3 {[%clk 0:01:00.8]} 55... Bd4 {[%clk 0:01:17.8]} 56. gxh5 {[%clk
0:00:59.7]} 56... gxh5 {[%clk 0:01:18]} 57. Kh4 {[%clk 0:01:00.6]} 57... Be3
{[%clk 0:01:13.6]} 58. Bg3 {[%clk 0:01:01.1]} 58... Kf6 {[%clk 0:01:05]} 59.
Kxh5 {[%clk 0:01:02.2]} 59... b5 {[%clk 0:01:06.2]} 60. Bh4+ {[%clk 0:01:02.7]}
60... Ke6 {[%clk 0:01:06.1]} 61. Kg5 {[%clk 0:01:04]} 61... Bd4 {[%clk
0:01:04.7]} 62. Kg6 {[%clk 0:01:05.1]} 62... Be3 {[%clk 0:01:05.4]} 63. Bg5
{[%clk 0:01:06.2]} 63... bxc4 {[%clk 0:01:06.2]} 64. bxc4 {[%clk 0:01:06.7]}
64... Bd4 {[%clk 0:01:05.3]} 65. h4 {[%clk 0:01:07.9]} 1-0